bitfinex-derivatives/quotes_ETHF0:USTF0_20250629
["timestamp","ask_amount","ask_price","bid_price","bid_amount"]
[1751158976228,3.6077347,2438.0,2437.9,0.6864]
[1751158976537,0.57411,2437.8,2437.6,6.22582601]
[1751158976728,0.57411,2437.8,2437.7,0.6909]
[1751158976930,1.51971653,2437.8,2437.7,0.6909]
[1751158978137,1.51971653,2437.8,2437.7,1.26501]
[1751158978329,1.51971653,2437.8,2437.7,0.6909]
[1751158982128,0.57413,2437.6,2437.5,2.44391601]
[1751158982334,2.64425814,2437.6,2437.5,3.15461601]
[1751158982733,2.64425814,2437.6,2437.5,5.22474415]
[1751158982734,0.57413,2437.6,2437.5,5.22474415]
[1751158982940,0.57412,2437.7,2437.5,5.79888415]
[1751158983344,0.57413,2437.6,2437.5,5.79888415]
[1751158983541,0.57413,2437.7,2437.5,5.79888415]
[1751158983845,0.94554925,2437.6,2437.5,3.35496814]
[1751158984744,1.51967925,2437.6,2437.5,3.35496814]
[1751158987850,1.51967925,2437.6,2437.5,2.78082814]
[1751158988759,1.51967925,2437.6,2437.5,3.35497814]
[1751158989057,1.51967925,2437.6,2437.5,2.78082814]
[1751158989857,1.51967925,2437.6,2437.5,0.7107]
[1751158990559,1.51967925,2437.6,2437.5,1.28485]
[1751158990763,0.57413,2437.7,2437.5,0.7107]
[1751158990960,6.274,2437.8,2437.5,0.7107]
[1751158990961,0.57413,2437.6,2437.5,0.7107]
[1751158991257,0.57413,2437.7,2437.5,0.7107]
[1751158991449,0.57413,2437.6,2437.5,0.7107]
[1751158991651,0.57412,2437.7,2437.6,0.57412]
[1751158991859,1.51902933,2437.7,2437.6,0.57412]
[1751158992756,0.57413,2437.6,2437.5,2.64426814]
[1751158996263,6.72001,2438.0,2437.5,2.07012814]
[1751158996466,0.57413,2437.7,2437.6,0.57411]
[1751158996762,1.51901353,2437.7,2437.6,0.57411]
[1751159002569,0.94488353,2437.7,2437.6,0.57411]
[1751159002968,1.51899353,2437.7,2437.6,1.90701]
[1751159004168,1.51899353,2437.7,2437.6,0.57413]
[1751159004367,0.57413,2437.6,2437.5,25.26514]
[1751159005070,0.57413,2437.6,2437.5,0.57414]
[1751159006070,0.57413,2437.6,2437.5,1.25694]
[1751159007178,0.57412,2437.7,2437.6,0.57412]
[1751159007478,1.5203877,2437.7,2437.6,0.57412]
[1751159010068,0.57413,2437.6,2437.5,3.32706814]
[1751159011270,1.5206225,2437.6,2437.5,3.32706814]
[1751159011774,0.9464925,2437.6,2437.5,3.32706814]
[1751159011974,0.57412,2437.7,2437.6,0.57413]
[1751159012175,1.5206064,2437.7,2437.6,0.57413]
[1751159015078,0.9464864,2437.7,2437.6,0.57413]
[1751159017679,1.5205964,2437.7,2437.6,0.57413]
[1751159017878,0.9464864,2437.7,2437.6,0.57413]
[1751159018781,1.5205964,2437.7,2437.6,0.57413]
[1751159019179,0.9464864,2437.7,2437.6,0.57413]
[1751159023078,1.5205964,2437.7,2437.6,0.57413]
[1751159024481,0.57413,2437.6,2437.5,8.97877415]
[1751159024679,0.57413,2437.6,2437.5,31.59664601]
[1751159024981,2.92900984,2437.6,2437.5,29.15273]
[1751159029288,2.92900984,2437.6,2437.5,25.94493]
[1751159034691,2.35487984,2437.6,2437.5,25.94493]
[1751159035891,2.92900984,2437.6,2437.5,25.94493]
[1751159036388,2.35487984,2437.6,2437.5,25.94493]
[1751159036590,2.92900984,2437.6,2437.5,25.94493]
[1751159037690,2.35487984,2437.6,2437.5,25.94493]
[1751159042091,0.94637984,2437.6,2437.5,25.94493]
[1751159052911,1.52050984,2437.6,2437.5,25.94493]
[1751159053311,0.94637984,2437.6,2437.5,25.94493]
[1751159062423,0.94637984,2437.6,2437.5,28.38884601]
[1751159062911,0.94637984,2437.6,2437.5,25.94493]
[1751159065623,1.52050984,2437.6,2437.5,25.94493]
[1751159070027,2.89980984,2437.6,2437.5,25.94493]
[1751159071332,0.57415,2437.5,2437.4,6.22587601]
[1751159071526,0.57415,2437.5,2437.4,30.90887601]
[1751159071527,1.90155,2437.5,2437.4,30.90887601]
[1751159072032,1.90155,2437.5,2437.4,6.22587601]
[1751159072234,1.90155,2437.5,2437.4,30.90887601]
[1751159072532,2.58935,2437.5,2437.4,30.90887601]
[1751159074637,2.58935,2437.5,2437.4,27.70107601]
[1751159074843,2.58935,2437.5,2437.4,30.33471601]
[1751159075334,3.54041962,2437.5,2437.4,2.44391601]
[1751159077337,5.61054776,2437.5,2437.4,2.44391601]
[1751159078340,5.61054776,2437.5,2437.4,3.01809601]
[1751159078740,5.61054776,2437.5,2437.4,2.44391601]
[1751159080143,5.61054776,2437.5,2437.4,3.01809601]
[1751159080440,5.61054776,2437.5,2437.4,0.57418]
[1751159084141,3.54041962,2437.5,2437.4,0.57418]
[1751159084544,0.57418,2437.4,2437.3,27.70110601]
[1751159084737,1.91368,2437.4,2437.3,27.70110601]
[1751159087442,1.3395,2437.4,2437.3,27.70110601]
[1751159089643,1.91368,2437.4,2437.3,3.01810601]
[1751159090348,1.3395,2437.4,2437.3,3.01810601]
[1751159090745,1.91368,2437.4,2437.3,3.01810601]
[1751159090944,1.3395,2437.4,2437.3,3.01810601]
[1751159091545,1.91368,2437.4,2437.3,3.01810601]
[1751159092146,1.3395,2437.4,2437.3,3.01810601]
[1751159092642,1.91368,2437.4,2437.3,3.01810601]
[1751159094251,1.3395,2437.4,2437.3,3.01810601]
[1751159094439,1.26197,2437.5,2437.4,0.57418]
[1751159094745,1.63864855,2437.5,2437.4,0.57418]
[1751159094934,0.95084855,2437.5,2437.4,1.27338]
[1751159095139,1.52499855,2437.5,2437.4,1.27338]
[1751159102553,10.45886855,2437.5,2437.4,1.27338]
[1751159105946,11.88676855,2437.5,2437.4,1.27338]
[1751159106452,11.88676855,2437.5,2437.4,0.6992]
[1751159106651,12.59626855,2437.5,2437.4,0.6992]
[1751159106954,0.57418,2437.4,2437.3,2.44391601]
[1751159107152,1.53332697,2437.4,2437.3,2.44391601]
[1751159107450,2.96342697,2437.4,2437.3,2.44391601]
[1751159107755,5.03355511,2437.4,2437.3,2.44391601]
[1751159108256,0.5742,2437.3,2437.2,31.57693601]
[1751159108554,1.53334697,2437.3,2437.2,29.13302]
[1751159110362,10.46721697,2437.3,2437.2,29.13302]
[1751159114361,9.50807,2437.3,2437.2,29.13302]
[1751159114561,8.93387,2437.3,2437.2,29.13302]
[1751159115163,9.50807,2437.3,2437.2,29.13302]
[1751159115764,8.93387,2437.3,2437.2,29.13302]
[1751159116864,8.93387,2437.3,2437.2,25.92522]
[1751159118660,9.50807,2437.3,2437.2,25.92522]
[1751159118867,8.93387,2437.3,2437.2,25.92422]
[1751159131874,8.93387,2437.3,2437.2,29.13202]
[1751159134473,9.89147254,2437.3,2437.2,29.13202]
[1751159135380,9.89147254,2437.3,2437.2,33.64606415]
[1751159135872,9.89147254,2437.3,2437.2,30.43826415]
[1751159136079,9.89147254,2437.3,2437.2,33.64606415]
[1751159141185,9.89147254,2437.3,2437.2,30.43826415]
[1751159141486,9.89147254,2437.3,2437.2,33.64606415]
[1751159148704,9.89147254,2437.3,2437.2,30.43826415]
[1751159149602,9.89147254,2437.3,2437.2,30.43426415]
[1751159151894,11.26477254,2437.3,2437.2,30.43426415]
[1751159158608,11.83897254,2437.3,2437.2,30.43426415]
[1751159160207,11.26477254,2437.3,2437.2,30.43426415]
[1751159166110,11.26477254,2437.3,2437.2,33.64206415]
[1751159175909,11.26477254,2437.3,2437.2,30.43426415]
[1751159178218,9.89147254,2437.3,2437.2,30.43426415]
[1751159186715,11.33927254,2437.3,2437.2,30.43426415]
[1751159188124,11.91347254,2437.3,2437.2,5.75826415]
[1751159188425,11.91347254,2437.3,2437.2,27.68913601]
[1751159188628,12.58737254,2437.3,2437.2,27.68913601]
[1751159189222,12.01317254,2437.3,2437.2,27.68913601]
[1751159192731,12.01317254,2437.3,2437.2,3.01813601]
[1751159192932,12.68157254,2437.3,2437.2,27.68813601]
[1751159197035,13.25577254,2437.3,2437.2,2.44391601]
[1751159197235,13.25577254,2437.3,2437.2,27.68814601]
[1751159198232,12.68157254,2437.3,2437.2,27.68814601]
[1751159199432,13.25577254,2437.3,2437.2,3.01814601]
[1751159199635,13.25577254,2437.3,2437.2,27.68814601]
[1751159200832,12.68157254,2437.3,2437.2,27.68814601]
[1751159205643,13.25577254,2437.3,2437.2,27.68814601]
[1751159206335,12.68157254,2437.3,2437.2,27.68814601]
[1751159207442,12.68157254,2437.3,2437.2,28.37914601]
[1751159212146,12.00767254,2437.3,2437.2,28.37914601]
[1751159216752,9.89147254,2437.3,2437.2,28.37914601]
[1751159224467,10.46567254,2437.3,2437.2,28.37914601]
[1751159224866,9.89147254,2437.3,2437.2,28.37914601]
[1751159225968,9.89147254,2437.3,2437.2,30.44927415]
[1751159226869,6.8331,2437.8,2437.6,0.57411]
[1751159227066,6.8331,2437.8,2437.7,0.6978]
[1751159228865,8.90322814,2437.8,2437.7,0.6978]
[1751159229967,17.83709814,2437.8,2437.7,0.6978]
[1751159238876,18.79092492,2437.8,2437.7,0.6978]
[1751159241273,18.21682492,2437.8,2437.5,25.24014]
[1751159241475,2.07012814,2437.6,2437.5,0.57414]
[1751159241674,3.02395492,2437.6,2437.5,0.57414]
[1751159241866,4.38435492,2437.6,2437.5,0.57414]
[1751159242376,4.95848492,2437.6,2437.5,0.57414]
[1751159242572,0.57415,2437.5,2437.4,3.2078]
[1751159242772,0.5742,2437.3,2437.2,3.15126205]
[1751159242966,2.64432814,2437.3,2437.2,0.6912]
[1751159243170,0.57423,2437.2,2437.1,5.66786205]
[1751159243372,1.93463,2437.2,2437.1,5.66786205]
[1751159244877,2.88793407,2437.2,2437.1,3.2078]
[1751159245382,11.82180407,2437.2,2437.1,3.2078]
[1751159246381,11.82180407,2437.2,2437.1,3.78205]
[1751159247177,10.8685,2437.2,2437.1,3.78205]
[1751159249886,10.29427,2437.2,2437.1,3.78205]
[1751159250687,10.29427,2437.2,2437.1,0.57425]
[1751159251084,8.93387,2437.2,2437.1,0.57425]
[1751159256285,9.5081,2437.2,2437.1,0.57425]
[1751159256491,8.93387,2437.2,2437.1,0.57425]
[1751159263497,9.5081,2437.2,2437.1,0.57425]
[1751159264190,8.93387,2437.2,2437.1,0.57425]
[1751159265394,8.93387,2437.2,2437.1,25.23825]
[1751159266397,9.5081,2437.2,2437.1,25.23825]
[1751159266591,10.46215326,2437.2,2437.1,25.23825]
[1751159269497,9.88792326,2437.2,2437.1,25.23825]
[1751159269992,11.89565326,2437.2,2437.1,25.23825]
[1751159275500,11.89565326,2437.2,2437.1,0.57425]
[1751159275689,13.9657814,2437.2,2437.1,25.23825]
[1751159278395,13.9657814,2437.2,2437.1,24.664]
[1751159279400,13.9657814,2437.2,2437.1,25.23825]
[1751159280303,11.32142326,2437.2,2437.1,25.23825]
[1751159280801,11.89565326,2437.2,2437.1,25.23825]
[1751159283906,11.32142326,2437.2,2437.1,25.23825]
[1751159288101,13.3915514,2437.2,2437.0,3.15126205]
[1751159288407,12.29402814,2437.2,2437.1,24.663]
[1751159288609,13.24782124,2437.2,2437.1,24.663]
[1751159288809,0.57425,2437.1,2437.0,3.72552205]
[1751159289006,0.57425,2437.1,2437.0,28.38852205]
[1751159290511,9.50812,2437.1,2437.0,28.38852205]
[1751159293816,8.93387,2437.1,2437.0,28.38852205]
[1751159295413,9.50812,2437.1,2437.0,28.38852205]
[1751159296314,10.4621676,2437.1,2437.0,25.92846]
[1751159298313,10.4621676,2437.1,2437.0,0.6912]
[1751159298506,10.4621676,2437.1,2437.0,27.81546394]
[1751159301213,10.4621676,2437.1,2437.0,2.46126394]
[1751159301813,0.57427,2437.0,2436.9,30.90635394]
[1751159302016,3.59844574,2437.0,2436.9,30.90635394]
[1751159303818,3.59844574,2437.0,2436.9,30.33206394]
[1751159304315,3.59844574,2437.0,2436.9,30.90636394]
[1751159304711,3.59844574,2437.0,2436.9,30.33206394]
[1751159305219,12.53231574,2437.0,2436.9,27.8708]
[1751159305618,12.53231574,2437.0,2436.9,30.33206394]
[1751159306022,12.53231574,2437.0,2436.9,27.12426394]
[1751159306215,12.53231574,2437.0,2436.9,27.8708]
[1751159307320,11.57826814,2437.0,2436.9,28.4451]
[1751159307516,11.57826814,2437.0,2436.9,27.8708]
[1751159308223,11.57826814,2437.0,2436.9,28.4451]
[1751159309016,9.50814,2437.0,2436.9,28.4451]
[1751159309924,9.50814,2437.0,2436.9,27.8708]
[1751159312727,9.50814,2437.0,2436.9,3.2078]
[1751159312927,9.50814,2437.0,2436.9,27.8708]
[1751159314229,10.46145534,2437.0,2436.9,27.8708]
[1751159317699,10.46145534,2437.0,2436.9,24.663]
[1751159317830,10.46145534,2437.0,2436.9,27.8708]
[1751159320636,10.46145534,2437.0,2436.9,24.663]
[1751159320838,10.46145534,2437.0,2436.9,27.8708]
[1751159322743,10.46145534,2437.0,2436.9,24.663]
[1751159323035,10.46145534,2437.0,2436.9,27.8708]
[1751159323636,10.46145534,2437.0,2436.9,24.663]
[1751159323836,10.46145534,2437.0,2436.9,27.8708]
[1751159325137,10.46145534,2437.0,2436.9,24.663]
[1751159325340,10.46145534,2437.0,2436.9,27.8708]
[1751159326646,10.46145534,2437.0,2436.9,24.663]
[1751159326837,10.46145534,2437.0,2436.9,27.8708]
[1751159327440,10.46145534,2437.0,2436.9,28.4451]
[1751159331156,10.46145534,2437.0,2436.9,27.8708]
[1751159332450,10.46145534,2437.0,2436.9,28.4451]
[1751159332958,10.46145534,2437.0,2436.9,27.8708]
[1751159334360,10.46145534,2437.0,2436.9,28.4451]
[1751159335152,10.46145534,2437.0,2436.9,30.51522814]
[1751159335153,9.88718534,2437.0,2436.9,30.51522814]
[1751159336356,10.46145534,2437.0,2436.9,30.51522814]
[1751159340261,9.88718534,2437.0,2436.9,30.51522814]
[1751159340659,9.88718534,2437.0,2436.9,28.4451]
[1751159341066,9.88718534,2437.0,2436.9,30.90636394]
[1751159341265,8.93387,2437.0,2436.9,29.8344]
[1751159341466,0.57417,2437.5,2437.3,0.57418]
[1751159341665,0.57417,2437.5,2437.4,0.7208]
[1751159341856,1.5281802,2437.5,2437.4,0.7208]
[1751159342660,1.5281802,2437.5,2437.4,1.29498]
[1751159344563,10.4620502,2437.5,2437.4,0.7208]
[1751159345460,10.4620502,2437.5,2437.4,1.29498]
[1751159346365,10.4620502,2437.5,2437.4,0.7208]
[1751159346554,10.4620502,2437.5,2437.4,1.29498]
[1751159346867,10.4620502,2437.5,2437.4,0.7208]
[1751159347066,10.4620502,2437.5,2437.4,1.29498]
[1751159347266,10.4620502,2437.5,2437.4,0.7208]
[1751159349968,11.3120802,2437.5,2437.2,3.2078]
[1751159350168,0.5742,2437.3,2437.2,3.2078]
[1751159350370,0.57423,2437.2,2437.1,25.93714]
[1751159350563,4.06855814,2437.2,2437.1,25.93714]
[1751159350967,4.06855814,2437.2,2437.1,25.3629]
[1751159351467,0.57425,2437.1,2437.0,27.12655998]
[1751159351669,1.97435,2437.1,2437.0,27.70082998]
[1751159353873,1.97435,2437.1,2437.0,27.12655998]
[1751159354367,2.66355,2437.1,2437.0,27.12655998]
[1751159355170,11.59742,2437.1,2437.0,27.12655998]
[1751159357873,11.59742,2437.1,2437.0,24.666]
[1751159358074,0.57427,2437.0,2436.9,5.66835998]
[1751159358274,3.97179814,2437.0,2436.9,5.66835998]
[1751159358474,4.69959814,2437.0,2436.9,5.66835998]
[1751159360176,13.63346814,2437.0,2436.9,5.66835998]
[1751159360480,13.63346814,2437.0,2436.9,3.2078]
[1751159361378,0.5743,2436.9,2436.8,28.40277998]
[1751159361574,1.9264,2436.9,2436.8,28.40277998]
[1751159362778,1.9264,2436.9,2436.8,27.82845998]
[1751159364175,1.9264,2436.9,2436.8,28.40277998]
[1751159364575,9.50815,2437.0,2436.9,0.5743]
[1751159364975,9.50815,2437.0,2436.9,2.64442814]
[1751159370682,9.50815,2437.0,2436.9,0.5743]
[1751159371985,0.5743,2436.9,2436.8,33.68069812]
[1751159372981,9.50816,2437.0,2436.9,0.5743]
[1751159374486,9.50816,2437.0,2436.8,5.66835998]
[1751159374789,9.50816,2437.0,2436.7,2.46055998]
[1751159374790,0.57432,2436.8,2436.7,2.46055998]
[1751159374981,0.57437,2436.6,2436.5,2.46055998]
[1751159375584,4.07269814,2436.6,2436.5,2.46055998]
[1751159376691,4.96736804,2436.6,2436.5,2.46055998]
[1751159380191,13.90123804,2436.6,2436.5,2.46055998]
[1751159381287,0.57439,2436.5,2436.4,0.57441]
[1751159381482,0.57439,2436.5,2436.3,1.24242]
[1751159381483,0.57441,2436.4,2436.3,1.24242]
[1751159382584,0.57441,2436.4,2436.3,1.24244]
[1751159382785,0.57441,2436.4,2436.3,0.668]
[1751159384990,0.57441,2436.4,2436.3,1.24244]
[1751159385191,0.57441,2436.4,2436.3,0.668]
[1751159385392,9.50828,2436.4,2436.3,0.668]
[1751159398707,11.5836309,2436.4,2436.3,0.668]
[1751159402011,12.53369343,2436.4,2436.3,0.668]
[1751159403111,13.21519343,2436.4,2436.3,0.668]
[1751159408511,0.57444,2436.3,2436.2,3.2078]
[1751159408710,1.52450253,2436.3,2436.2,3.9047]
[1751159409306,1.52450253,2436.3,2436.2,4.47916]
[1751159410208,10.45837253,2436.3,2436.2,4.47916]
[1751159413019,9.88393253,2436.3,2436.2,6.5545109]
[1751159415216,10.45837253,2436.3,2436.2,6.5545109]
[1751159415612,9.88393253,2436.3,2436.2,6.5545109]
[1751159418419,10.45837253,2436.3,2436.2,6.5545109]
[1751159426025,9.88393253,2436.3,2436.2,6.5545109]
[1751159426626,10.45837253,2436.3,2436.2,4.47916]
[1751159430134,10.45837253,2436.3,2436.2,1.27136]
[1751159431532,9.88393253,2436.3,2436.2,1.27136]
[1751159431935,10.45837253,2436.3,2436.2,1.27136]
[1751159434439,9.88393253,2436.3,2436.2,1.27136]
[1751159437142,10.45837253,2436.3,2436.2,1.27136]
[1751159437942,9.88393253,2436.3,2436.2,1.27136]
[1751159438743,10.45837253,2436.3,2436.2,1.27136]
[1751159444147,9.88393253,2436.3,2436.2,1.27136]
[1751159445849,6.90327507,2436.3,2436.2,10.19071998]
[1751159446847,6.90327507,2436.3,2436.2,3.73191998]
[1751159447152,6.90327507,2436.3,2436.2,36.73727088]
[1751159448651,6.90327507,2436.3,2436.2,34.2767109]
[1751159454354,6.90327507,2436.3,2436.2,28.0227109]
[1751159455154,6.90327507,2436.3,2436.2,30.48066859]
[1751159465663,8.29467507,2436.3,2436.2,30.48066859]
[1751159466860,8.86911507,2436.3,2436.2,3.72931769]
[1751159467065,9.59691507,2436.3,2436.2,27.12795769]
[1751159467264,9.59691507,2436.3,2436.2,27.12895769]
[1751159469967,9.59691507,2436.3,2436.2,2.45795769]
[1751159470263,9.59691507,2436.3,2436.2,27.12995769]
[1751159471970,9.59691507,2436.3,2436.2,27.12895769]
[1751159473672,0.57446,2436.2,2436.1,30.34375769]
[1751159473967,1.93516,2436.2,2436.1,30.34375769]
[1751159474172,1.93516,2436.2,2436.1,30.34591957]
[1751159475069,2.88111076,2436.2,2436.1,27.8858]
[1751159475262,8.83843507,2436.2,2436.1,27.8858]
[1751159476372,8.83843507,2436.2,2436.1,28.46028]
[1751159476770,8.83843507,2436.2,2436.1,27.8858]
[1751159477573,9.78385444,2436.2,2436.1,27.8858]
[1751159478868,9.78385444,2436.2,2436.1,3.2078]
[1751159479073,9.78385444,2436.2,2436.1,27.8858]
[1751159480075,9.78385444,2436.2,2436.1,28.46028]
[1751159480680,9.78385444,2436.2,2436.1,27.8858]
[1751159483581,11.85920534,2436.2,2436.1,3.2078]
[1751159483780,11.85920534,2436.2,2436.1,27.8848]
[1751159484479,11.85920534,2436.2,2436.1,27.8828]
[1751159485981,11.85920534,2436.2,2436.1,28.45728]
[1751159487382,10.91378597,2436.2,2436.1,28.45728]
[1751159487883,10.91378597,2436.2,2436.1,27.8828]
[1751159488081,10.91378597,2436.2,2436.1,28.45728]
[1751159488679,8.83843507,2436.2,2436.1,28.45728]
[1751159489484,8.83843507,2436.2,2436.1,3.78228]
[1751159489683,8.83843507,2436.2,2436.1,3.2078]
[1751159489889,8.83843507,2436.2,2436.1,3.78228]
[1751159491882,9.77935283,2436.2,2436.1,3.78228]
[1751159493084,9.77935283,2436.2,2436.1,0.57448]
[1751159497991,9.77935283,2436.2,2436.1,1.23928]
[1751159507592,9.20489283,2436.2,2436.1,1.23928]
[1751159507795,7.84419283,2436.2,2436.1,1.23928]
[1751159510505,7.84419283,2436.2,2436.1,3.3146309]
[1751159516400,7.84419283,2436.2,2436.1,6.5224309]
[1751159516701,8.41865283,2436.2,2436.1,6.5224309]
[1751159520102,7.84419283,2436.2,2436.1,6.5224309]
[1751159520602,8.41865283,2436.2,2436.1,6.5224309]
[1751159523206,7.84419283,2436.2,2436.1,6.5224309]
[1751159523606,8.41865283,2436.2,2436.1,6.5224309]
[1751159523906,7.84419283,2436.2,2436.1,6.5224309]
[1751159524204,8.41865283,2436.2,2436.1,6.5224309]
[1751159526099,8.41865283,2436.2,2436.1,3.3146309]
[1751159526294,8.41865283,2436.2,2436.1,6.5224309]
[1751159527407,8.41865283,2436.2,2436.1,3.3146309]
[1751159527810,8.41865283,2436.2,2436.1,6.5224309]
[1751159528606,7.84419283,2436.2,2436.1,6.5224309]
[1751159529106,8.41865283,2436.2,2436.1,6.5224309]
[1751159535112,7.84419283,2436.2,2436.1,6.5224309]
[1751159537118,7.84419283,2436.2,2436.1,4.44708]
[1751159539819,7.84419283,2436.2,2436.1,29.11908]
[1751159541114,8.41865283,2436.2,2436.1,29.11908]
[1751159542420,7.84419283,2436.2,2436.1,29.11908]
[1751159551817,8.41865283,2436.2,2436.1,4.44708]
[1751159552018,8.41865283,2436.2,2436.1,29.11808]
[1751159555017,8.41865283,2436.2,2436.1,4.44708]
[1751159555222,8.41865283,2436.2,2436.1,29.11808]
[1751159555418,9.86275283,2436.2,2436.1,29.11808]
[1751159557621,9.86275283,2436.2,2436.1,4.44708]
[1751159557820,9.86275283,2436.2,2436.1,29.11808]
[1751159561228,9.86275283,2436.2,2436.1,25.91028]
[1751159561423,9.86275283,2436.2,2436.1,29.11808]
[1751159564531,9.86275283,2436.2,2436.1,4.44708]
[1751159564726,9.86275283,2436.2,2436.1,29.11808]
[1751159565129,9.86275283,2436.2,2436.1,4.44708]
[1751159565429,9.86275283,2436.2,2436.1,29.11808]
[1751159566633,9.86275283,2436.2,2436.1,31.1934309]
[1751159568737,9.28829283,2436.2,2436.1,31.1934309]
[1751159569735,9.28829283,2436.2,2436.1,6.5224309]
[1751159569929,9.86275283,2436.2,2436.1,31.1934309]
[1751159570130,9.86275283,2436.2,2436.1,6.5224309]
[1751159570330,9.86275283,2436.2,2436.1,31.1934309]
[1751159571535,9.86275283,2436.2,2436.1,6.5224309]
[1751159571732,9.86275283,2436.2,2436.1,31.1934309]
[1751159573138,9.86275283,2436.2,2436.1,6.5224309]
[1751159573337,9.86275283,2436.2,2436.1,31.1934309]
[1751159574339,9.86275283,2436.2,2436.1,27.9856309]
[1751159575739,9.86275283,2436.2,2436.1,3.3146309]
[1751159575938,9.86275283,2436.2,2436.1,27.9856309]
[1751159577237,9.86275283,2436.2,2436.1,3.3146309]
[1751159577538,9.86275283,2436.2,2436.1,27.9856309]
[1751159577738,9.86275283,2436.2,2436.1,3.3146309]
[1751159577939,9.86275283,2436.2,2436.1,27.9856309]
[1751159578242,9.86275283,2436.2,2436.1,3.3146309]
[1751159578438,9.86275283,2436.2,2436.1,27.9856309]
[1751159592949,7.84419283,2436.2,2436.1,27.9856309]
[1751159595655,8.41865283,2436.2,2436.1,27.9856309]
[1751159597646,8.41865283,2436.2,2436.1,31.1934309]
[1751159598054,8.41865283,2436.2,2436.1,27.9856309]
[1751159598258,8.41865283,2436.2,2436.1,31.1934309]
[1751159607269,8.41865283,2436.2,2436.1,27.9856309]
[1751159607669,8.41865283,2436.2,2436.1,31.1934309]
[1751159609270,8.41865283,2436.2,2436.1,27.9856309]
[1751159609571,8.41865283,2436.2,2436.1,31.1934309]
[1751159610574,7.84419283,2436.2,2436.1,31.1934309]
[1751159613474,8.41865283,2436.2,2436.1,31.1934309]
[1751159618674,8.41865283,2436.2,2436.1,27.9856309]
[1751159618876,8.41865283,2436.2,2436.1,31.1934309]
[1751159625678,8.41865283,2436.2,2436.1,27.9856309]
[1751159625874,8.41865283,2436.2,2436.1,31.1934309]
[1751159627182,8.41865283,2436.2,2436.1,27.9856309]
[1751159627383,8.41865283,2436.2,2436.1,31.1934309]
[1751159630184,8.41865283,2436.2,2436.1,6.5224309]
[1751159630386,8.41865283,2436.2,2436.1,31.1904309]
[1751159631682,9.80945283,2436.2,2436.1,31.1904309]
[1751159635689,9.80945283,2436.2,2436.1,6.5224309]
[1751159635985,9.80945283,2436.2,2436.1,31.1894309]
[1751159642289,9.80945283,2436.2,2436.1,6.5224309]
[1751159642488,9.80945283,2436.2,2436.1,31.1894309]
[1751159643492,9.23499283,2436.2,2436.1,31.1894309]
[1751159643994,7.84419283,2436.2,2436.1,31.1894309]
[1751159645196,7.84419283,2436.2,2436.1,29.11408]
[1751159653897,8.41865283,2436.2,2436.1,29.11408]
[1751159654692,7.84419283,2436.2,2436.1,29.11408]
[1751159655892,7.84419283,2436.2,2436.1,25.90628]
[1751159656902,7.84419283,2436.2,2436.1,1.23928]
[1751159657093,7.84419283,2436.2,2436.1,25.90428]
[1751159658499,8.41865283,2436.2,2436.1,25.90428]
[1751159659601,7.84419283,2436.2,2436.1,25.90428]
[1751159660902,8.41865283,2436.2,2436.1,1.23928]
[1751159661103,8.41865283,2436.2,2436.0,4.53547047]
[1751159661401,2.87929776,2436.1,2436.0,2.6498609]
[1751159661601,2.87929776,2436.1,2436.0,0.57451]
[1751159662104,2.87929776,2436.1,2436.0,25.23851]
[1751159663903,0.57451,2436.0,2435.9,3.74052957]
[1751159664106,1.90441,2436.0,2435.9,27.83001957]
[1751159664318,3.55718244,2436.0,2435.9,25.3699]
[1751159664616,3.55718244,2436.0,2435.9,25.94443]
[1751159665216,10.46045751,2436.0,2435.9,1.28043]
[1751159665416,10.46045751,2436.0,2435.9,25.94543]
[1751159666120,10.46045751,2436.0,2435.9,1.28043]
[1751159666319,10.46045751,2436.0,2435.9,25.94543]
[1751159667717,10.46045751,2436.0,2435.9,25.3709]
[1751159668016,0.57453,2435.9,2435.8,5.66791957]
[1751159668222,4.97176687,2435.9,2435.8,27.8728]
[1751159669324,4.97176687,2435.9,2435.8,3.2078]
[1751159670222,11.87504194,2435.9,2435.8,3.2078]
[1751159671420,9.79969104,2435.9,2435.8,3.2078]
[1751159675622,0.57456,2435.8,2435.7,24.666]
[1751159675822,1.94196,2435.8,2435.7,3.2078]
[1751159676019,4.0173109,2435.8,2435.7,3.2078]
[1751159678324,0.57458,2435.7,2435.6,1.2932]
[1751159678525,0.57458,2435.7,2435.6,0.7186]
[1751159678713,1.95338,2435.7,2435.6,0.7186]
[1751159680224,8.85665507,2435.7,2435.6,0.7186]
[1751159683926,9.79976605,2435.7,2435.6,0.7186]
[1751159684426,9.79976605,2435.7,2435.6,1.2932]
[1751159695035,8.42096605,2435.7,2435.6,1.2932]
[1751159696429,13.12953695,2435.7,2435.4,0.57464]
[1751159696635,2.40961098,2435.6,2435.4,25.24364]
[1751159696935,2.1726,2435.6,2435.4,25.24364]
[1751159697135,0.57465,2435.4,2435.3,30.48113047]
[1751159697641,0.57464,2435.5,2435.4,0.57464]
[1751159700440,0.57465,2435.4,2435.3,30.48012047]
[1751159700942,0.57465,2435.4,2435.3,28.0200009]
[1751159702144,0.57465,2435.4,2435.3,3.3490009]
[1751159702442,0.57465,2435.4,2435.3,28.0200009]
[1751159702642,0.57465,2435.4,2435.3,28.0190009]
[1751159703046,0.57465,2435.4,2435.3,25.94365]
[1751159705140,7.47792507,2435.4,2435.3,0.699]
[1751159706040,7.47792507,2435.4,2435.3,1.27367]
[1751159707446,7.47792507,2435.4,2435.3,0.699]
[1751159709153,7.47792507,2435.4,2435.3,1.27367]
[1751159709344,7.47792507,2435.4,2435.3,0.699]
[1751159710552,7.47792507,2435.4,2435.3,3.15911957]
[1751159710741,7.47792507,2435.4,2435.3,3.73378957]
[1751159711544,6.90327507,2435.4,2435.3,5.80914047]
[1751159711751,6.90327507,2435.4,2435.3,13.49804047]
[1751159712440,6.90327507,2435.4,2435.3,13.49922991]
[1751159713648,6.90327507,2435.4,2435.3,11.42387901]
[1751159713853,6.90327507,2435.4,2435.3,13.49922991]
[1751159716455,6.90327507,2435.4,2435.3,11.0379209]
[1751159716652,6.90327507,2435.4,2435.3,11.92850252]
[1751159717954,6.90327507,2435.4,2435.3,2.70857]
[1751159718253,6.90327507,2435.4,2435.3,35.16360252]
[1751159725762,6.90327507,2435.4,2435.3,36.59690252]
[1751159730465,6.90327507,2435.4,2435.3,41.59690252]
[1751159733470,6.90327507,2435.4,2435.3,36.59690252]
[1751159736266,6.90327507,2435.4,2435.3,44.85545721]